[Event "January 9 Late 2024"]
[Site "https://www.chess.com"]
[Date "2024.01.09"]
[Round "3"]
[White "Poltorak, Sebastian"]
[Black "Boraso, Alessio"]
[Result "1-0"]
[Board "129"]
[TimeControl "180+1"]
[WhiteFideId "1199498"]
[BlackFideId "848077"]
[WhiteElo "2613"]
[BlackElo "2449"]
[WhiteTeam "POL"]
[BlackTeam "ITA"]
[WhiteClock "0:00:55"]
[BlackClock "0:00:46"]

1. d4 {[%clk 0:03:00]}  d6 {[%clk 0:03:00]} 2. c4 {[%clk 0:02:59]}  Nf6 {[%clk 0:03:01]} 3. Nc3 {[%clk 0:02:58]}  g6 {[%clk 0:02:57]} 4. e4 {[%clk 0:02:58]}  Bg7 {[%clk 0:02:57]} 5. f3 {[%clk 0:02:59]}  O-O {[%clk 0:02:56]} 6. Nge2 {[%clk 0:02:59]}  c5 {[%clk 0:02:56]} 7. Be3 {[%clk 0:02:56]}  Nc6 {[%clk 0:02:52]} 8. Qd2 {[%clk 0:02:54]}  Qa5 {[%clk 0:02:49]} 9. Rd1 {[%clk 0:02:50]}  e5 {[%clk 0:02:49]} 10. dxc5 {[%clk 0:02:44]}  dxc5 {[%clk 0:02:50]} 11. Nd5 {[%clk 0:02:43]}  Qxd2+ {[%clk 0:02:43]} 12. Rxd2 {[%clk 0:02:43]}  Nxd5 {[%clk 0:02:42]} 13. cxd5 {[%clk 0:02:41]}  Nd4 {[%clk 0:02:43]} 14. Nc3 {[%clk 0:02:38]}  Bd7 {[%clk 0:02:42]} 15. Bd3 {[%clk 0:02:29]}  b5 {[%clk 0:02:42]} 16. Bxd4 {[%clk 0:02:23]}  exd4 {[%clk 0:02:40]} 17. Nxb5 {[%clk 0:02:23]}  Bxb5 {[%clk 0:02:29]} 18. Bxb5 {[%clk 0:02:24]}  Bh6 {[%clk 0:02:21]} 19. Rc2 {[%clk 0:02:23]}  Rab8 {[%clk 0:02:14]} 20. Rxc5 {[%clk 0:02:01]}  a6 {[%clk 0:02:15]} 21. Bxa6 {[%clk 0:01:53]}  Rxb2 {[%clk 0:02:16]} 22. O-O {[%clk 0:01:52]}  d3 {[%clk 0:02:12]} 23. Kh1 {[%clk 0:01:50]}  d2 {[%clk 0:02:07]} 24. a4 {[%clk 0:01:34]}  f5 {[%clk 0:02:01]} 25. e5 {[%clk 0:01:26]}  Rfb8 {[%clk 0:01:54]} 26. Bb5 {[%clk 0:01:26]}  Be3 {[%clk 0:01:45]} 27. Rc4 {[%clk 0:01:23]}  R8xb5 {[%clk 0:01:37]} 28. axb5 {[%clk 0:01:21]}  Rxb5 {[%clk 0:01:37]} 29. d6 {[%clk 0:01:20]}  Kf7 {[%clk 0:01:32]} 30. Rc7+ {[%clk 0:01:12]}  Kf8 {[%clk 0:01:26]} 31. e6 {[%clk 0:01:11]}  Rd5 {[%clk 0:01:20]} 32. Rc8+ {[%clk 0:00:54]}  Kg7 {[%clk 0:01:19]} 33. Rd1 {[%clk 0:00:55]}  Rxd6 {[%clk 0:01:18]} 34. e7 {[%clk 0:00:55]}  Re6 {[%clk 0:00:46]} 35. e8=Q {[%clk 0:00:55]} 1-0

[Event "January 9 Late 2024"]
[Site "https://www.chess.com"]
[Date "2024.01.09"]
[Round "3"]
[White "Erdogan, Anil Berk"]
[Black "Sliwicki, Damian"]
[Result "0-1"]
[Board "131"]
[TimeControl "180+1"]
[WhiteFideId "6348173"]
[BlackFideId "1127128"]
[WhiteElo "2608"]
[BlackElo "2444"]
[WhiteTeam "TUR"]
[BlackTeam "POL"]
[WhiteClock "0:00:09"]
[BlackClock "0:00:12"]

1. e4 {[%clk 0:03:00]}  c5 {[%clk 0:02:57]} 2. Nf3 {[%clk 0:02:59]}  g6 {[%clk 0:02:57]} 3. d4 {[%clk 0:02:59]}  cxd4 {[%clk 0:02:58]} 4. Qxd4 {[%clk 0:03:00]}  Nf6 {[%clk 0:02:58]} 5. e5 {[%clk 0:03:00]}  Nc6 {[%clk 0:02:59]} 6. Qa4 {[%clk 0:03:01]}  Nd5 {[%clk 0:02:59]} 7. Qb3 {[%clk 0:03:02]}  Nb6 {[%clk 0:02:54]} 8. Nc3 {[%clk 0:03:01]}  Bg7 {[%clk 0:02:54]} 9. Bf4 {[%clk 0:03:01]}  O-O {[%clk 0:02:54]} 10. O-O-O {[%clk 0:03:02]}  Qc7 {[%clk 0:02:21]} 11. Nb5 {[%clk 0:02:33]}  Qb8 {[%clk 0:02:19]} 12. Qe3 {[%clk 0:02:32]}  e6 {[%clk 0:02:08]} 13. c4 {[%clk 0:01:57]}  d5 {[%clk 0:01:45]} 14. exd6 {[%clk 0:01:55]}  Bd7 {[%clk 0:01:45]} 15. Nc7 {[%clk 0:01:52]}  Qc8 {[%clk 0:01:16]} 16. Bh6 {[%clk 0:01:43]}  Rb8 {[%clk 0:01:00]} 17. Bxg7 {[%clk 0:01:42]}  Kxg7 {[%clk 0:00:59]} 18. h4 {[%clk 0:01:37]}  h5 {[%clk 0:00:57]} 19. Kb1 {[%clk 0:01:25]}  Na8 {[%clk 0:00:56]} 20. Nxa8 {[%clk 0:01:19]}  Rxa8 {[%clk 0:00:56]} 21. Ne5 {[%clk 0:01:18]}  Nxe5 {[%clk 0:00:56]} 22. Qxe5+ {[%clk 0:01:19]}  f6 {[%clk 0:00:54]} 23. Qg3 {[%clk 0:01:15]}  Qc5 {[%clk 0:00:52]} 24. Bd3 {[%clk 0:01:13]}  f5 {[%clk 0:00:45]} 25. Rhe1 {[%clk 0:00:51]}  Rae8 {[%clk 0:00:46]} 26. Qe5+ {[%clk 0:00:51]}  Qxe5 {[%clk 0:00:44]} 27. Rxe5 {[%clk 0:00:52]}  Kf6 {[%clk 0:00:44]} 28. f4 {[%clk 0:00:52]}  Rc8 {[%clk 0:00:42]} 29. Rc1 {[%clk 0:00:43]}  Rc6 {[%clk 0:00:40]} 30. c5 {[%clk 0:00:43]}  a6 {[%clk 0:00:33]} 31. b4 {[%clk 0:00:42]}  Rb8 {[%clk 0:00:28]} 32. Rce1 {[%clk 0:00:31]}  b6 {[%clk 0:00:27]} 33. Bc4 {[%clk 0:00:15]}  bxc5 {[%clk 0:00:27]} 34. Bxe6 {[%clk 0:00:14]}  Rxb4+ {[%clk 0:00:27]} 35. Kc2 {[%clk 0:00:14]}  Rxd6 {[%clk 0:00:25]} 36. Bxd7 {[%clk 0:00:14]}  Rxd7 {[%clk 0:00:25]} 37. Rxc5 {[%clk 0:00:14]}  Rxf4 {[%clk 0:00:23]} 38. Rc6+ {[%clk 0:00:15]}  Kf7 {[%clk 0:00:22]} 39. Rxa6 {[%clk 0:00:14]}  Rf2+ {[%clk 0:00:21]} 40. Kc3 {[%clk 0:00:13]}  Rxg2 {[%clk 0:00:21]} 41. Ree6 {[%clk 0:00:14]}  f4 {[%clk 0:00:17]} 42. Rf6+ {[%clk 0:00:14]}  Kg7 {[%clk 0:00:17]} 43. Rxf4 {[%clk 0:00:14]}  Rc7+ {[%clk 0:00:17]} 44. Rc4 {[%clk 0:00:13]}  Rc2+ {[%clk 0:00:15]} 45. Kxc2 {[%clk 0:00:12]}  Rxc4+ {[%clk 0:00:16]} 46. Kb3 {[%clk 0:00:12]}  Rxh4 {[%clk 0:00:17]} 47. Re6 {[%clk 0:00:11]}  Rh1 {[%clk 0:00:16]} 48. a4 {[%clk 0:00:11]}  Ra1 {[%clk 0:00:15]} 49. Re2 {[%clk 0:00:10]}  h4 {[%clk 0:00:15]} 50. Rg2 {[%clk 0:00:08]}  Kf6 {[%clk 0:00:12]} 51. Rg4 {[%clk 0:00:09]}  g5 {[%clk 0:00:12]} 52. Kb2 {[%clk 0:00:09]}  Rd1 {[%clk 0:00:10]} 53. a5 {[%clk 0:00:10]}  Kf5 {[%clk 0:00:10]} 54. Ra4 {[%clk 0:00:09]}  Rd8 {[%clk 0:00:09]} 55. a6 {[%clk 0:00:10]}  h3 {[%clk 0:00:10]} 56. a7 {[%clk 0:00:11]}  h2 {[%clk 0:00:09]} 57. Ra1 {[%clk 0:00:09]}  g4 {[%clk 0:00:09]} 58. Kc3 {[%clk 0:00:08]}  g3 {[%clk 0:00:10]} 59. a8=Q {[%clk 0:00:08]}  Rxa8 {[%clk 0:00:09]} 60. Rxa8 {[%clk 0:00:09]}  h1=Q {[%clk 0:00:10]} 61. Rf8+ {[%clk 0:00:10]}  Kg4 {[%clk 0:00:10]} 62. Rg8+ {[%clk 0:00:10]}  Kf3 {[%clk 0:00:11]} 63. Rf8+ {[%clk 0:00:11]}  Kg2 {[%clk 0:00:11]} 64. Rd8 {[%clk 0:00:11]}  Qf1 {[%clk 0:00:11]} 65. Kb4 {[%clk 0:00:12]}  Qf3 {[%clk 0:00:11]} 66. Ka5 {[%clk 0:00:13]}  Qf2 {[%clk 0:00:12]} 67. Ka6 {[%clk 0:00:13]}  Qe2+ {[%clk 0:00:12]} 68. Ka7 {[%clk 0:00:13]}  Qe7+ {[%clk 0:00:11]} 69. Rd7 {[%clk 0:00:12]}  Qxd7+ {[%clk 0:00:12]} 70. Kb8 {[%clk 0:00:09]}  Qg7 {[%clk 0:00:12]} 0-1

[Event "January 9 Late 2024"]
[Site "https://www.chess.com"]
[Date "2024.01.09"]
[Round "3"]
[White "Figorito, Nick"]
[Black "Rodgers, Jack"]
[Result "1-0"]
[Board "134"]
[TimeControl "180+1"]
[WhiteFideId "30923689"]
[BlackFideId "3220885"]
[WhiteElo "2399"]
[BlackElo "2604"]
[WhiteTeam "USA"]
[BlackTeam "AUS"]
[WhiteClock "0:00:06"]
[BlackClock "0:00:00"]

1. Nf3 {[%clk 0:03:00]}  c5 {[%clk 0:02:58]} 2. g3 {[%clk 0:03:01]}  g6 {[%clk 0:02:57]} 3. Bg2 {[%clk 0:03:01]}  Bg7 {[%clk 0:02:58]} 4. O-O {[%clk 0:03:02]}  Nf6 {[%clk 0:02:56]} 5. c4 {[%clk 0:03:02]}  O-O {[%clk 0:02:56]} 6. d4 {[%clk 0:03:02]}  cxd4 {[%clk 0:02:57]} 7. Nxd4 {[%clk 0:03:02]}  Nc6 {[%clk 0:02:58]} 8. Nc2 {[%clk 0:03:03]}  d6 {[%clk 0:02:56]} 9. Nc3 {[%clk 0:03:03]}  Be6 {[%clk 0:02:55]} 10. b3 {[%clk 0:03:04]}  Qd7 {[%clk 0:02:56]} 11. Bb2 {[%clk 0:03:02]}  Bh3 {[%clk 0:02:56]} 12. Ne3 {[%clk 0:03:02]}  Bxg2 {[%clk 0:02:55]} 13. Kxg2 {[%clk 0:03:03]}  Rac8 {[%clk 0:02:55]} 14. Qd2 {[%clk 0:03:03]}  a6 {[%clk 0:02:53]} 15. Ncd5 {[%clk 0:03:04]}  Nxd5 {[%clk 0:02:50]} 16. Nxd5 {[%clk 0:03:04]}  Qd8 {[%clk 0:02:44]} 17. Bxg7 {[%clk 0:03:01]}  Kxg7 {[%clk 0:02:44]} 18. a4 {[%clk 0:02:51]}  e6 {[%clk 0:02:41]} 19. Qb2+ {[%clk 0:02:49]}  f6 {[%clk 0:02:41]} 20. Nf4 {[%clk 0:02:49]}  Qe7 {[%clk 0:02:32]} 21. Rfd1 {[%clk 0:02:46]}  g5 {[%clk 0:02:28]} 22. Nd3 {[%clk 0:02:38]}  h5 {[%clk 0:02:19]} 23. Qa3 {[%clk 0:02:26]}  Rfd8 {[%clk 0:02:08]} 24. Nb4 {[%clk 0:02:25]}  Qc7 {[%clk 0:02:03]} 25. Nxc6 {[%clk 0:02:23]}  Qxc6+ {[%clk 0:02:04]} 26. Kg1 {[%clk 0:02:21]}  h4 {[%clk 0:02:03]} 27. Rd3 {[%clk 0:02:07]}  h3 {[%clk 0:02:00]} 28. f3 {[%clk 0:01:55]}  b5 {[%clk 0:01:38]} 29. axb5 {[%clk 0:01:54]}  axb5 {[%clk 0:01:39]} 30. cxb5 {[%clk 0:01:48]}  Qxb5 {[%clk 0:01:34]} 31. Qa7+ {[%clk 0:01:40]}  Rd7 {[%clk 0:01:24]} 32. Qa4 {[%clk 0:01:25]}  Qxa4 {[%clk 0:01:16]} 33. bxa4 {[%clk 0:01:18]}  d5 {[%clk 0:01:16]} 34. g4 {[%clk 0:01:11]}  e5 {[%clk 0:01:06]} 35. a5 {[%clk 0:01:09]}  Kf7 {[%clk 0:01:02]} 36. a6 {[%clk 0:01:09]}  Ra8 {[%clk 0:01:00]} 37. Kf2 {[%clk 0:01:02]}  Ke6 {[%clk 0:00:59]} 38. Kg3 {[%clk 0:01:00]}  Rh7 {[%clk 0:00:55]} 39. e3 {[%clk 0:00:56]}  Raa7 {[%clk 0:00:40]} 40. Ra5 {[%clk 0:00:54]}  Rad7 {[%clk 0:00:36]} 41. Ra4 {[%clk 0:00:46]}  f5 {[%clk 0:00:30]} 42. gxf5+ {[%clk 0:00:44]}  Kxf5 {[%clk 0:00:31]} 43. e4+ {[%clk 0:00:33]}  Kf6 {[%clk 0:00:24]} 44. Rxd5 {[%clk 0:00:30]}  Rxd5 {[%clk 0:00:19]} 45. exd5 {[%clk 0:00:31]}  Ra7 {[%clk 0:00:19]} 46. Kxh3 {[%clk 0:00:29]}  Ke7 {[%clk 0:00:17]} 47. Kg4 {[%clk 0:00:28]}  Kd6 {[%clk 0:00:18]} 48. Ra5 {[%clk 0:00:29]}  Kc7 {[%clk 0:00:16]} 49. Kxg5 {[%clk 0:00:28]}  Kb6 {[%clk 0:00:17]} 50. Ra1 {[%clk 0:00:27]}  Ra8 {[%clk 0:00:14]} 51. a7 {[%clk 0:00:27]}  Kb7 {[%clk 0:00:14]} 52. Kf5 {[%clk 0:00:27]}  Rf8+ {[%clk 0:00:15]} 53. Kxe5 {[%clk 0:00:28]}  Ka8 {[%clk 0:00:16]} 54. f4 {[%clk 0:00:28]}  Re8+ {[%clk 0:00:14]} 55. Kd4 {[%clk 0:00:24]}  Re2 {[%clk 0:00:13]} 56. f5 {[%clk 0:00:19]}  Rd2+ {[%clk 0:00:11]} 57. Ke5 {[%clk 0:00:19]}  Re2+ {[%clk 0:00:11]} 58. Kd6 {[%clk 0:00:19]}  Rxh2 {[%clk 0:00:12]} 59. f6 {[%clk 0:00:19]}  Rf2 {[%clk 0:00:10]} 60. Ke7 {[%clk 0:00:17]}  Re2+ {[%clk 0:00:10]} 61. Kf7 {[%clk 0:00:18]}  Rd2 {[%clk 0:00:09]} 62. Ra5 {[%clk 0:00:13]}  Rd1 {[%clk 0:00:05]} 63. Kg8 {[%clk 0:00:11]}  Rg1+ {[%clk 0:00:06]} 64. Kf8 {[%clk 0:00:12]}  Rd1 {[%clk 0:00:06]} 65. f7 {[%clk 0:00:12]}  Rd2 {[%clk 0:00:06]} 66. Ke7 {[%clk 0:00:12]}  Re2+ {[%clk 0:00:06]} 67. Kd7 {[%clk 0:00:12]}  Rf2 {[%clk 0:00:06]} 68. Ke8 {[%clk 0:00:10]}  Re2+ {[%clk 0:00:06]} 69. Kf8 {[%clk 0:00:09]}  Rd2 {[%clk 0:00:06]} 70. Rc5 {[%clk 0:00:06]}  Kxa7 {[%clk 0:00:05]} 71. Rc7+ {[%clk 0:00:05]}  Kb6 {[%clk 0:00:06]} 72. Re7 {[%clk 0:00:06]}  Ra2 {[%clk 0:00:02]} 73. Ke8 {[%clk 0:00:05]}  Ra8+ {[%clk 0:00:02]} 74. Kd7 {[%clk 0:00:05]}  Ra7+ {[%clk 0:00:03]} 75. Ke6 {[%clk 0:00:06]}  Ra6 {[%clk 0:00:03]} 76. f8=Q {[%clk 0:00:06]}  Kc5+ {[%clk 0:00:04]} 77. Kf7 {[%clk 0:00:06]}  Kxd5 {[%clk 0:00:03]} 78. Rd7+ {[%clk 0:00:06]}  Kc4 {[%clk 0:00:03]} 79. Qc8+ {[%clk 0:00:07]}  Rc6 {[%clk 0:00:00]} 80. Qxc6+ {[%clk 0:00:06]} 1-0

[Event "January 9 Late 2024"]
[Site "https://www.chess.com"]
[Date "2024.01.09"]
[Round "3"]
[White "Bogaudinov, Rushan"]
[Black "O`Gorman, Tom"]
[Result "1-0"]
[Board "137"]
[TimeControl "180+1"]
[WhiteFideId "4129288"]
[BlackFideId "2508249"]
[WhiteElo "2386"]
[BlackElo "2598"]
[WhiteTeam "RUS"]
[BlackTeam "IRL"]
[WhiteClock "0:00:42"]
[BlackClock "0:01:26"]

1. d4 {[%clk 0:03:00]}  Nf6 {[%clk 0:02:58]} 2. Nf3 {[%clk 0:02:59]}  d6 {[%clk 0:02:58]} 3. e3 {[%clk 0:02:59]}  Nc6 {[%clk 0:02:58]} 4. d5 {[%clk 0:02:55]}  Nb4 {[%clk 0:02:58]} 5. c4 {[%clk 0:02:49]}  c6 {[%clk 0:02:58]} 6. Nc3 {[%clk 0:02:46]}  e6 {[%clk 0:02:54]} 7. a3 {[%clk 0:02:41]}  Na6 {[%clk 0:02:53]} 8. b4 {[%clk 0:02:34]}  Be7 {[%clk 0:02:52]} 9. Bb2 {[%clk 0:02:33]}  O-O {[%clk 0:02:49]} 10. Be2 {[%clk 0:02:33]}  e5 {[%clk 0:02:43]} 11. e4 {[%clk 0:02:30]}  Bg4 {[%clk 0:02:39]} 12. Nd2 {[%clk 0:02:24]}  Bxe2 {[%clk 0:02:39]} 13. Qxe2 {[%clk 0:02:24]}  Rc8 {[%clk 0:02:38]} 14. O-O {[%clk 0:02:16]}  Qd7 {[%clk 0:02:29]} 15. h3 {[%clk 0:02:08]}  Bd8 {[%clk 0:02:28]} 16. Rfd1 {[%clk 0:02:02]}  cxd5 {[%clk 0:02:25]} 17. exd5 {[%clk 0:01:59]}  Nc7 {[%clk 0:02:22]} 18. Nb3 {[%clk 0:01:45]}  b6 {[%clk 0:02:17]} 19. f4 {[%clk 0:01:34]}  Re8 {[%clk 0:02:13]} 20. fxe5 {[%clk 0:01:33]}  Rxe5 {[%clk 0:02:12]} 21. Qd3 {[%clk 0:01:27]}  Nce8 {[%clk 0:02:03]} 22. Nb5 {[%clk 0:01:24]}  Re4 {[%clk 0:01:55]} 23. Rac1 {[%clk 0:01:14]}  Qf5 {[%clk 0:01:47]} 24. Bxf6 {[%clk 0:01:10]}  Nxf6 {[%clk 0:01:42]} 25. Nxd6 {[%clk 0:00:46]}  Re1+ {[%clk 0:01:40]} 26. Kh2 {[%clk 0:00:46]}  Rxd1 {[%clk 0:01:26]} 27. Qxf5 {[%clk 0:00:42]} 1-0

[Event "January 9 Late 2024"]
[Site "https://www.chess.com"]
[Date "2024.01.09"]
[Round "3"]
[White "Zeneli, Klendi"]
[Black "Kochiev, Ivan"]
[Result "0-1"]
[Board "139"]
[TimeControl "180+1"]
[WhiteFideId "4706609"]
[BlackFideId "2917890"]
[WhiteElo "2381"]
[BlackElo "2592"]
[WhiteTeam "ALB"]
[BlackTeam "BUL"]
[WhiteClock "0:00:52"]
[BlackClock "0:00:57"]

1. e4 {[%clk 0:02:59]}  e5 {[%clk 0:02:59]} 2. Nf3 {[%clk 0:02:58]}  Nf6 {[%clk 0:03:00]} 3. Nxe5 {[%clk 0:02:57]}  Nc6 {[%clk 0:03:00]} 4. Nxc6 {[%clk 0:02:57]}  dxc6 {[%clk 0:03:01]} 5. d3 {[%clk 0:02:57]}  Bc5 {[%clk 0:03:01]} 6. Be2 {[%clk 0:02:57]}  h5 {[%clk 0:02:58]} 7. O-O {[%clk 0:02:34]}  Ng4 {[%clk 0:02:48]} 8. c3 {[%clk 0:02:33]}  Qh4 {[%clk 0:02:26]} 9. h3 {[%clk 0:02:07]}  Bxf2+ {[%clk 0:02:05]} 10. Kh1 {[%clk 0:02:02]}  Qg3 {[%clk 0:02:05]} 11. Bxg4 {[%clk 0:01:33]}  hxg4 {[%clk 0:02:03]} 12. Rxf2 {[%clk 0:01:17]}  Qxf2 {[%clk 0:01:27]} 13. Qg1 {[%clk 0:01:08]}  Qe2 {[%clk 0:01:01]} 14. Qe3 {[%clk 0:00:55]}  Qf1+ {[%clk 0:01:00]} 15. Kh2 {[%clk 0:00:52]}  gxh3 {[%clk 0:00:57]} 0-1

[Event "January 9 Late 2024"]
[Site "https://www.chess.com"]
[Date "2024.01.09"]
[Round "3"]
[White "Filipets, Egor"]
[Black "Gao, Raymond"]
[Result "0-1"]
[Board "141"]
[TimeControl "180+1"]
[WhiteFideId "13503928"]
[BlackFideId "2629429"]
[WhiteElo "2589"]
[BlackElo "2367"]
[WhiteTeam "BLR"]
[BlackTeam "CAN"]
[WhiteClock "0:00:43"]
[BlackClock "0:00:31"]

1. c4 {[%clk 0:02:57]}  Na6 {[%clk 0:03:00]} 2. g3 {[%clk 0:02:57]}  g6 {[%clk 0:03:00]} 3. Bg2 {[%clk 0:02:58]}  Bg7 {[%clk 0:02:59]} 4. Nf3 {[%clk 0:02:58]}  Nh6 {[%clk 0:02:59]} 5. O-O {[%clk 0:02:59]}  c5 {[%clk 0:02:57]} 6. Nc3 {[%clk 0:02:59]}  Nf5 {[%clk 0:02:56]} 7. Rb1 {[%clk 0:03:00]}  Nb4 {[%clk 0:02:56]} 8. a3 {[%clk 0:03:00]}  Nc6 {[%clk 0:02:56]} 9. b4 {[%clk 0:03:00]}  d6 {[%clk 0:02:55]} 10. Bb2 {[%clk 0:02:57]}  O-O {[%clk 0:02:54]} 11. d3 {[%clk 0:02:55]}  Bd7 {[%clk 0:02:53]} 12. b5 {[%clk 0:02:49]}  Ncd4 {[%clk 0:02:52]} 13. e3 {[%clk 0:02:50]}  Nxf3+ {[%clk 0:02:52]} 14. Bxf3 {[%clk 0:02:50]}  Rb8 {[%clk 0:02:51]} 15. a4 {[%clk 0:02:50]}  h5 {[%clk 0:02:44]} 16. Nd5 {[%clk 0:02:46]}  e6 {[%clk 0:02:39]} 17. Bxg7 {[%clk 0:02:44]}  Kxg7 {[%clk 0:02:40]} 18. Nf4 {[%clk 0:02:42]}  h4 {[%clk 0:02:38]} 19. d4 {[%clk 0:02:35]}  cxd4 {[%clk 0:02:28]} 20. exd4 {[%clk 0:02:35]}  Qf6 {[%clk 0:02:28]} 21. c5 {[%clk 0:02:16]}  Nxd4 {[%clk 0:02:21]} 22. cxd6 {[%clk 0:02:16]}  Nxf3+ {[%clk 0:02:10]} 23. Qxf3 {[%clk 0:02:17]}  e5 {[%clk 0:02:11]} 24. Rb4 {[%clk 0:02:13]}  exf4 {[%clk 0:02:09]} 25. Rxf4 {[%clk 0:02:14]}  Qxd6 {[%clk 0:02:07]} 26. Rxh4 {[%clk 0:02:14]}  Be6 {[%clk 0:02:00]} 27. Rd1 {[%clk 0:02:08]}  Qe5 {[%clk 0:01:56]} 28. Re4 {[%clk 0:02:09]}  Qf6 {[%clk 0:01:56]} 29. Rf4 {[%clk 0:02:08]}  Qe5 {[%clk 0:01:56]} 30. Re4 {[%clk 0:02:08]}  Qc5 {[%clk 0:01:48]} 31. Qf4 {[%clk 0:01:25]}  Rbd8 {[%clk 0:01:38]} 32. Rc1 {[%clk 0:01:18]}  Qf5 {[%clk 0:01:36]} 33. Qe3 {[%clk 0:01:19]}  Rc8 {[%clk 0:01:06]} 34. Re1 {[%clk 0:01:02]}  Qc5 {[%clk 0:01:00]} 35. Qf4 {[%clk 0:00:57]}  Qf5 {[%clk 0:00:56]} 36. Qe3 {[%clk 0:00:56]}  Rfd8 {[%clk 0:00:50]} 37. Rh4 {[%clk 0:00:54]}  Rh8 {[%clk 0:00:45]} 38. Rf4 {[%clk 0:00:53]}  Qc5 {[%clk 0:00:38]} 39. Qf3 {[%clk 0:00:47]}  Qc3 {[%clk 0:00:35]} 40. Re3 {[%clk 0:00:42]}  Qc1+ {[%clk 0:00:30]} 41. Kg2 {[%clk 0:00:43]}  Bh3# {[%clk 0:00:31]} 0-1

[Event "January 9 Late 2024"]
[Site "https://www.chess.com"]
[Date "2024.01.09"]
[Round "3"]
[White "Womacka, Mathias"]
[Black "Bouget, Alexandre"]
[Result "1/2-1/2"]
[Board "143"]
[TimeControl "180+1"]
[WhiteFideId "4611390"]
[BlackFideId "681318"]
[WhiteElo "2586"]
[BlackElo "2360"]
[WhiteTeam "GER"]
[BlackTeam "FRA"]
[WhiteClock "0:00:15"]
[BlackClock "0:00:27"]

1. e4 {[%clk 0:03:00]}  e5 {[%clk 0:02:58]} 2. Nf3 {[%clk 0:02:59]}  Nc6 {[%clk 0:02:58]} 3. Bb5 {[%clk 0:03:00]}  a6 {[%clk 0:02:52]} 4. Bxc6 {[%clk 0:02:59]}  dxc6 {[%clk 0:02:51]} 5. O-O {[%clk 0:03:00]}  f6 {[%clk 0:02:36]} 6. d4 {[%clk 0:02:59]}  Bg4 {[%clk 0:02:37]} 7. c3 {[%clk 0:02:57]}  Bd6 {[%clk 0:02:36]} 8. Be3 {[%clk 0:02:58]}  Ne7 {[%clk 0:02:33]} 9. Nbd2 {[%clk 0:02:58]}  Ng6 {[%clk 0:02:33]} 10. h3 {[%clk 0:02:56]}  Be6 {[%clk 0:02:33]} 11. dxe5 {[%clk 0:02:54]}  fxe5 {[%clk 0:02:28]} 12. Ng5 {[%clk 0:02:53]}  Bg8 {[%clk 0:02:28]} 13. Qh5 {[%clk 0:02:46]}  Qf6 {[%clk 0:02:27]} 14. Nb3 {[%clk 0:02:25]}  O-O-O {[%clk 0:02:20]} 15. Rfd1 {[%clk 0:02:10]}  h6 {[%clk 0:02:19]} 16. Nf3 {[%clk 0:02:04]}  Be6 {[%clk 0:02:11]} 17. Nc5 {[%clk 0:01:57]}  Bxc5 {[%clk 0:02:09]} 18. Bxc5 {[%clk 0:01:56]}  Kb8 {[%clk 0:01:34]} 19. Rxd8+ {[%clk 0:01:27]}  Rxd8 {[%clk 0:01:32]} 20. Be3 {[%clk 0:01:28]}  b6 {[%clk 0:01:26]} 21. a4 {[%clk 0:01:27]}  Bc4 {[%clk 0:01:12]} 22. a5 {[%clk 0:01:24]}  Kb7 {[%clk 0:01:07]} 23. Qf5 {[%clk 0:01:03]}  Be2 {[%clk 0:00:57]} 24. Qxf6 {[%clk 0:00:58]}  gxf6 {[%clk 0:00:58]} 25. Bxh6 {[%clk 0:00:58]}  Bxf3 {[%clk 0:00:57]} 26. gxf3 {[%clk 0:00:57]}  Nh4 {[%clk 0:00:55]} 27. Kf1 {[%clk 0:00:47]}  Rd3 {[%clk 0:00:45]} 28. Ke2 {[%clk 0:00:39]}  Rxf3 {[%clk 0:00:44]} 29. axb6 {[%clk 0:00:31]}  cxb6 {[%clk 0:00:42]} 30. Rd1 {[%clk 0:00:30]}  Kc7 {[%clk 0:00:30]} 31. Bg7 {[%clk 0:00:20]}  Rf4 {[%clk 0:00:27]} 32. Ke3 {[%clk 0:00:17]}  Rf3+ {[%clk 0:00:27]} 33. Ke2 {[%clk 0:00:17]}  Rf4 {[%clk 0:00:28]} 34. Ke3 {[%clk 0:00:15]}  Rf3+ {[%clk 0:00:27]} 35. Ke2 {[%clk 0:00:15]} 1/2-1/2

[Event "January 9 Late 2024"]
[Site "https://www.chess.com"]
[Date "2024.01.09"]
[Round "3"]
[White "Asish Panda"]
[Black "Sohier, Julien"]
[Result "0-1"]
[Board "145"]
[TimeControl "180+1"]
[WhiteFideId "45012458"]
[BlackFideId "645346"]
[WhiteElo "2577"]
[BlackElo "2344"]
[WhiteTeam "IND"]
[BlackTeam "FRA"]
[WhiteClock "0:01:11"]
[BlackClock "0:01:25"]

1. e4 {[%clk 0:03:00]}  e5 {[%clk 0:02:54]} 2. Nf3 {[%clk 0:03:00]}  Nc6 {[%clk 0:02:55]} 3. Bc4 {[%clk 0:02:59]}  Bc5 {[%clk 0:02:54]} 4. c3 {[%clk 0:02:58]}  Nf6 {[%clk 0:02:54]} 5. d3 {[%clk 0:02:55]}  O-O {[%clk 0:02:53]} 6. Nbd2 {[%clk 0:02:56]}  d5 {[%clk 0:02:51]} 7. exd5 {[%clk 0:02:57]}  Nxd5 {[%clk 0:02:51]} 8. Ne4 {[%clk 0:02:57]}  Be7 {[%clk 0:02:51]} 9. Nfg5 {[%clk 0:02:56]}  h6 {[%clk 0:02:42]} 10. h4 {[%clk 0:02:51]}  Na5 {[%clk 0:02:30]} 11. Bxd5 {[%clk 0:02:50]}  Qxd5 {[%clk 0:02:29]} 12. Qf3 {[%clk 0:02:51]}  Qc6 {[%clk 0:02:11]} 13. Qg3 {[%clk 0:02:35]}  f5 {[%clk 0:01:46]} 14. Nd2 {[%clk 0:02:00]}  f4 {[%clk 0:01:44]} 15. Qh2 {[%clk 0:02:00]}  hxg5 {[%clk 0:01:40]} 16. hxg5 {[%clk 0:02:01]}  Bxg5 {[%clk 0:01:39]} 17. Qh7+ {[%clk 0:01:58]}  Kf7 {[%clk 0:01:39]} 18. Ne4 {[%clk 0:01:57]}  Qg6 {[%clk 0:01:35]} 19. Qh2 {[%clk 0:01:49]}  Bf5 {[%clk 0:01:34]} 20. Bd2 {[%clk 0:01:40]}  Bxe4 {[%clk 0:01:33]} 21. dxe4 {[%clk 0:01:41]}  Qxe4+ {[%clk 0:01:32]} 22. Kd1 {[%clk 0:01:39]}  Rh8 {[%clk 0:01:30]} 23. Qxh8 {[%clk 0:01:36]}  Rxh8 {[%clk 0:01:29]} 24. Rxh8 {[%clk 0:01:37]}  Nc4 {[%clk 0:01:28]} 25. Bc1 {[%clk 0:01:23]}  Qd3+ {[%clk 0:01:25]} 26. Ke1 {[%clk 0:01:11]}  f3 {[%clk 0:01:25]} 0-1